[Event "Titled Tuesday Blitz August 17 2021"]
[White "Kezin, Roman"]
[Black "Espinosa Veloz, Ermes"]
[WhiteFideId "24124621"]
[BlackFideId "3507424"]
[WhiteElo "2570"]
[BlackElo "2333"]
[Result "1-0"]
[Round "02"]
[TimeControl "180+1"]
[Date "2021.08.17"]
[WhiteClock "0:00:17"]
[BlackClock "0:00:01"]

1. d4 {[%clk 0:02:59]}  Nf6 {[%clk 0:02:59]} 2. c4 {[%clk 0:03:00]}  g6 {[%clk 0:02:59]} 3. Nc3 {[%clk 0:03:00]}  Bg7 {[%clk 0:02:59]} 4. Nf3 {[%clk 0:03:00]}  d6 {[%clk 0:02:59]} 5. Bg5 {[%clk 0:03:01]}  h6 {[%clk 0:02:58]} 6. Bh4 {[%clk 0:03:01]}  g5 {[%clk 0:02:57]} 7. Bg3 {[%clk 0:03:02]}  Nh5 {[%clk 0:02:58]} 8. e3 {[%clk 0:03:01]}  O-O {[%clk 0:02:47]} 9. Qc2 {[%clk 0:03:00]}  c5 {[%clk 0:02:45]} 10. d5 {[%clk 0:02:58]}  Na6 {[%clk 0:02:25]} 11. Be2 {[%clk 0:02:55]}  f5 {[%clk 0:02:16]} 12. Nd2 {[%clk 0:02:45]}  Nxg3 {[%clk 0:02:14]} 13. hxg3 {[%clk 0:02:46]}  Nb4 {[%clk 0:02:10]} 14. Qb1 {[%clk 0:02:45]}  e6 {[%clk 0:02:09]} 15. a3 {[%clk 0:02:44]}  Na6 {[%clk 0:02:09]} 16. Bf3 {[%clk 0:02:37]}  Nc7 {[%clk 0:02:08]} 17. Qd3 {[%clk 0:02:29]}  g4 {[%clk 0:02:07]} 18. Be2 {[%clk 0:02:22]}  Qe7 {[%clk 0:02:04]} 19. Kf1 {[%clk 0:02:15]}  exd5 {[%clk 0:02:04]} 20. cxd5 {[%clk 0:02:15]}  a6 {[%clk 0:01:56]} 21. a4 {[%clk 0:02:15]}  Rb8 {[%clk 0:01:56]} 22. a5 {[%clk 0:02:15]}  b5 {[%clk 0:01:54]} 23. axb6 {[%clk 0:02:16]}  Rxb6 {[%clk 0:01:53]} 24. Nc4 {[%clk 0:02:17]}  Rb4 {[%clk 0:01:53]} 25. Ra2 {[%clk 0:02:13]}  Nb5 {[%clk 0:01:51]} 26. Bd1 {[%clk 0:01:56]}  f4 {[%clk 0:01:33]} 27. gxf4 {[%clk 0:01:35]}  Bf5 {[%clk 0:01:31]} 28. e4 {[%clk 0:01:11]}  Nxc3 {[%clk 0:00:51]} 29. bxc3 {[%clk 0:01:10]}  Bxe4 {[%clk 0:00:50]} 30. Qe2 {[%clk 0:01:09]}  Rb1 {[%clk 0:00:49]} 31. Kg1 {[%clk 0:00:51]}  Re8 {[%clk 0:00:43]} 32. Nd2 {[%clk 0:00:50]}  Bxd5 {[%clk 0:00:42]} 33. Nxb1 {[%clk 0:00:47]}  Qxe2 {[%clk 0:00:40]} 34. Rxe2 {[%clk 0:00:48]}  Rb8 {[%clk 0:00:35]} 35. Bc2 {[%clk 0:00:44]}  a5 {[%clk 0:00:28]} 36. Kh2 {[%clk 0:00:35]}  Bc4 {[%clk 0:00:25]} 37. Rd2 {[%clk 0:00:35]}  d5 {[%clk 0:00:24]} 38. Rhd1 {[%clk 0:00:28]}  Rd8 {[%clk 0:00:22]} 39. Na3 {[%clk 0:00:28]}  Bxc3 {[%clk 0:00:16]} 40. Nxc4 {[%clk 0:00:28]}  Bxd2 {[%clk 0:00:16]} 41. Rxd2 {[%clk 0:00:28]}  Kg7 {[%clk 0:00:17]} 42. Nxa5 {[%clk 0:00:28]}  Ra8 {[%clk 0:00:16]} 43. Nb7 {[%clk 0:00:27]}  c4 {[%clk 0:00:12]} 44. Rxd5 {[%clk 0:00:26]}  Ra2 {[%clk 0:00:11]} 45. Bf5 {[%clk 0:00:22]}  Rxf2 {[%clk 0:00:10]} 46. Kg3 {[%clk 0:00:23]}  Rb2 {[%clk 0:00:09]} 47. Nc5 {[%clk 0:00:23]}  c3 {[%clk 0:00:08]} 48. Nd3 {[%clk 0:00:20]}  Rd2 {[%clk 0:00:07]} 49. Rc5 {[%clk 0:00:19]}  c2 {[%clk 0:00:07]} 50. Ne5 {[%clk 0:00:18]}  Kf6 {[%clk 0:00:05]} 51. Bxc2 {[%clk 0:00:18]}  Ke7 {[%clk 0:00:05]} 52. Bf5 {[%clk 0:00:17]}  h5 {[%clk 0:00:04]} 53. Bg6 {[%clk 0:00:16]}  h4+ {[%clk 0:00:03]} 54. Kxh4 {[%clk 0:00:16]}  Rxg2 {[%clk 0:00:03]} 55. Nxg4 {[%clk 0:00:17]}  Rg1 {[%clk 0:00:02]} 56. Kg5 {[%clk 0:00:17]}  Kf8 {[%clk 0:00:01]} 57. Rf5+ {[%clk 0:00:17]}  Ke7 {[%clk 0:00:02]} 58. Re5+ {[%clk 0:00:17]}  Kd6 {[%clk 0:00:01]} 59. Re3 {[%clk 0:00:17]}  Rf1 {[%clk 0:00:02]} 60. f5 {[%clk 0:00:17]}  Kd7 {[%clk 0:00:01]} 61. f6 {[%clk 0:00:17]} 1-0


[Site "https://www.chess.com"]

[Event "Titled Tuesday Blitz August 17 2021"]
[White "Khumalo, Keith"]
[Black "Nogerbek, Kazybek"]
[WhiteFideId "14319470"]
[BlackFideId "13710427"]
[WhiteElo "1992"]
[BlackElo "2436"]
[Result "1-0"]
[Round "02"]
[TimeControl "180+1"]
[Date "2021.08.17"]
[WhiteClock "0:00:39"]
[BlackClock "0:00:02"]

1. d4 {[%clk 0:03:00]}  Nf6 {[%clk 0:02:57]} 2. c4 {[%clk 0:03:01]}  g6 {[%clk 0:02:56]} 3. Nc3 {[%clk 0:03:01]}  Bg7 {[%clk 0:02:56]} 4. e4 {[%clk 0:03:01]}  d6 {[%clk 0:02:56]} 5. Bd3 {[%clk 0:03:01]}  Nc6 {[%clk 0:02:46]} 6. Nge2 {[%clk 0:03:00]}  O-O {[%clk 0:02:44]} 7. O-O {[%clk 0:03:00]}  e5 {[%clk 0:02:43]} 8. d5 {[%clk 0:03:00]}  Ne7 {[%clk 0:02:43]} 9. Rb1 {[%clk 0:03:00]}  a5 {[%clk 0:02:43]} 10. a3 {[%clk 0:03:00]}  Nh5 {[%clk 0:02:43]} 11. b4 {[%clk 0:02:59]}  axb4 {[%clk 0:02:44]} 12. axb4 {[%clk 0:03:00]}  f5 {[%clk 0:02:43]} 13. exf5 {[%clk 0:03:01]}  gxf5 {[%clk 0:02:38]} 14. f4 {[%clk 0:03:01]}  exf4 {[%clk 0:02:26]} 15. Rb3 {[%clk 0:02:52]}  Ng6 {[%clk 0:02:24]} 16. Nxf4 {[%clk 0:02:49]}  Nhxf4 {[%clk 0:02:24]} 17. Bxf4 {[%clk 0:02:50]}  Nxf4 {[%clk 0:02:21]} 18. Rxf4 {[%clk 0:02:50]}  Qg5 {[%clk 0:02:19]} 19. Ne2 {[%clk 0:02:45]}  Bd7 {[%clk 0:02:15]} 20. Bc2 {[%clk 0:02:33]}  Ra1 {[%clk 0:02:02]} 21. Rb1 {[%clk 0:02:29]}  Ra2 {[%clk 0:02:02]} 22. Rf3 {[%clk 0:02:18]}  f4 {[%clk 0:01:25]} 23. h3 {[%clk 0:02:10]}  Be5 {[%clk 0:01:18]} 24. Bb3 {[%clk 0:02:03]}  Ra3 {[%clk 0:01:12]} 25. Nd4 {[%clk 0:02:00]}  Rf6 {[%clk 0:00:39]} 26. Ne6 {[%clk 0:01:48]}  Qh4 {[%clk 0:00:38]} 27. Qe1 {[%clk 0:01:39]}  Qxe1+ {[%clk 0:00:29]} 28. Rxe1 {[%clk 0:01:39]}  c6 {[%clk 0:00:26]} 29. Nc7 {[%clk 0:01:19]}  Kg7 {[%clk 0:00:22]} 30. c5 {[%clk 0:01:14]}  Bd4+ {[%clk 0:00:16]} 31. Kh2 {[%clk 0:01:13]}  Be3 {[%clk 0:00:15]} 32. dxc6 {[%clk 0:01:04]}  bxc6 {[%clk 0:00:16]} 33. Bc2 {[%clk 0:01:01]}  dxc5 {[%clk 0:00:15]} 34. bxc5 {[%clk 0:01:00]}  Bxc5 {[%clk 0:00:16]} 35. Rd1 {[%clk 0:00:55]}  Rxf3 {[%clk 0:00:16]} 36. Rxd7+ {[%clk 0:00:54]}  Kf8 {[%clk 0:00:09]} 37. gxf3 {[%clk 0:00:53]}  h6 {[%clk 0:00:08]} 38. Bb3 {[%clk 0:00:53]}  Bb6 {[%clk 0:00:06]} 39. Ne6+ {[%clk 0:00:49]}  Ke8 {[%clk 0:00:07]} 40. Rb7 {[%clk 0:00:48]}  Be3 {[%clk 0:00:06]} 41. Ng7+ {[%clk 0:00:47]}  Kd8 {[%clk 0:00:06]} 42. Ne6+ {[%clk 0:00:48]}  Ke8 {[%clk 0:00:06]} 43. h4 {[%clk 0:00:45]}  Rg6 {[%clk 0:00:06]} 44. h5 {[%clk 0:00:40]}  Rf6 {[%clk 0:00:06]} 45. Kh3 {[%clk 0:00:40]}  c5 {[%clk 0:00:02]} 46. Ba4# {[%clk 0:00:39]} 1-0


[Site "https://www.chess.com"]

[Event "Titled Tuesday Blitz August 17 2021"]
[White "Krzywda, Andrzej"]
[Black "Hansen, Sune Berg"]
[WhiteFideId "1114565"]
[BlackFideId "1400266"]
[WhiteElo "2100"]
[BlackElo "2640"]
[Result "0-1"]
[Round "02"]
[TimeControl "180+1"]
[Date "2021.08.18"]
[WhiteClock "0:00:01"]
[BlackClock "0:00:30"]

1. e4 {[%clk 0:02:59]}  c5 {[%clk 0:02:59]} 2. Nc3 {[%clk 0:03:00]}  e6 {[%clk 0:02:59]} 3. f4 {[%clk 0:03:00]}  Nc6 {[%clk 0:02:57]} 4. Bb5 {[%clk 0:03:00]}  Nge7 {[%clk 0:02:56]} 5. Nf3 {[%clk 0:02:52]}  d5 {[%clk 0:02:55]} 6. Ne5 {[%clk 0:02:35]}  a6 {[%clk 0:02:34]} 7. Bxc6+ {[%clk 0:02:33]}  Nxc6 {[%clk 0:02:34]} 8. Nxc6 {[%clk 0:02:33]}  bxc6 {[%clk 0:02:35]} 9. d3 {[%clk 0:02:33]}  Qh4+ {[%clk 0:02:31]} 10. g3 {[%clk 0:02:33]}  Qh3 {[%clk 0:02:30]} 11. Qf3 {[%clk 0:02:26]}  Bd6 {[%clk 0:02:28]} 12. b3 {[%clk 0:02:14]}  O-O {[%clk 0:02:08]} 13. Bb2 {[%clk 0:02:14]}  f5 {[%clk 0:02:07]} 14. O-O-O {[%clk 0:02:01]}  fxe4 {[%clk 0:01:58]} 15. dxe4 {[%clk 0:02:01]}  Bxf4+ {[%clk 0:01:56]} 16. Kb1 {[%clk 0:01:56]}  Be5 {[%clk 0:01:43]} 17. Qe2 {[%clk 0:01:49]}  Bd4 {[%clk 0:01:32]} 18. Rhf1 {[%clk 0:01:26]}  Bd7 {[%clk 0:01:27]} 19. Na4 {[%clk 0:01:19]}  Rae8 {[%clk 0:00:55]} 20. Ba3 {[%clk 0:00:55]}  e5 {[%clk 0:00:52]} 21. Nxc5 {[%clk 0:00:39]}  Bg4 {[%clk 0:00:50]} 22. Qxa6 {[%clk 0:00:23]}  Bxd1 {[%clk 0:00:49]} 23. Rxd1 {[%clk 0:00:22]}  Qh5 {[%clk 0:00:37]} 24. Re1 {[%clk 0:00:12]}  Ra8 {[%clk 0:00:36]} 25. Qxc6 {[%clk 0:00:05]}  Rxa3 {[%clk 0:00:36]} 26. Qxd5+ {[%clk 0:00:05]}  Qf7 {[%clk 0:00:34]} 27. Ne6 {[%clk 0:00:03]}  Re8 {[%clk 0:00:31]} 28. Qc4 {[%clk 0:00:01]}  Qxe6 {[%clk 0:00:30]} 0-1


[Site "https://www.chess.com"]

[Event "Titled Tuesday Blitz August 17 2021"]
[White "Kvon, Andrey"]
[Black "Nastore, Pavel-Alexandru"]
[WhiteFideId "14201356"]
[BlackFideId "1255002"]
[WhiteElo "2458"]
[BlackElo "1763"]
[Result "1-0"]
[Round "02"]
[TimeControl "180+1"]
[Date "2021.08.17"]
[WhiteClock "0:00:52"]
[BlackClock "0:00:03"]

1. e4 {[%clk 0:03:00]}  c5 {[%clk 0:02:53]} 2. b3 {[%clk 0:03:00]}  d5 {[%clk 0:02:49]} 3. exd5 {[%clk 0:02:59]}  Qxd5 {[%clk 0:02:50]} 4. Bb2 {[%clk 0:02:59]}  Nf6 {[%clk 0:02:50]} 5. Ne2 {[%clk 0:02:58]}  Nc6 {[%clk 0:02:48]} 6. Nbc3 {[%clk 0:02:58]}  Qd6 {[%clk 0:02:38]} 7. g3 {[%clk 0:02:48]}  a6 {[%clk 0:02:37]} 8. Bg2 {[%clk 0:02:48]}  Bf5 {[%clk 0:02:33]} 9. O-O {[%clk 0:02:47]}  e6 {[%clk 0:02:20]} 10. d3 {[%clk 0:02:30]}  Rd8 {[%clk 0:01:54]} 11. h3 {[%clk 0:02:29]}  Qc7 {[%clk 0:01:45]} 12. Qc1 {[%clk 0:02:28]}  Be7 {[%clk 0:01:43]} 13. g4 {[%clk 0:02:25]}  Bg6 {[%clk 0:01:42]} 14. Ne4 {[%clk 0:02:14]}  Nxe4 {[%clk 0:01:37]} 15. dxe4 {[%clk 0:02:15]}  Nd4 {[%clk 0:01:11]} 16. Nxd4 {[%clk 0:02:04]}  cxd4 {[%clk 0:01:11]} 17. f4 {[%clk 0:02:04]}  f6 {[%clk 0:01:11]} 18. f5 {[%clk 0:01:48]}  Bf7 {[%clk 0:01:10]} 19. c4 {[%clk 0:01:47]}  O-O {[%clk 0:01:01]} 20. Rf3 {[%clk 0:01:42]}  e5 {[%clk 0:00:50]} 21. Bf1 {[%clk 0:01:41]}  Rc8 {[%clk 0:00:50]} 22. Qd2 {[%clk 0:01:37]}  Qd7 {[%clk 0:00:48]} 23. Rc1 {[%clk 0:01:30]}  Bc5 {[%clk 0:00:37]} 24. Bd3 {[%clk 0:01:29]}  Ba7 {[%clk 0:00:30]} 25. Kh2 {[%clk 0:01:28]}  b5 {[%clk 0:00:30]} 26. g5 {[%clk 0:01:28]}  bxc4 {[%clk 0:00:29]} 27. bxc4 {[%clk 0:01:29]}  Qa4 {[%clk 0:00:24]} 28. gxf6 {[%clk 0:01:26]}  Bxc4 {[%clk 0:00:10]} 29. Qg2 {[%clk 0:01:00]}  Rxf6 {[%clk 0:00:07]} 30. Rg3 {[%clk 0:01:00]}  Rf7 {[%clk 0:00:07]} 31. f6 {[%clk 0:01:00]}  g6 {[%clk 0:00:07]} 32. Rxg6+ {[%clk 0:01:00]}  hxg6 {[%clk 0:00:07]} 33. Qxg6+ {[%clk 0:01:01]}  Kf8 {[%clk 0:00:08]} 34. Qh6+ {[%clk 0:00:57]}  Ke8 {[%clk 0:00:08]} 35. Qh5 {[%clk 0:00:55]}  Rc7 {[%clk 0:00:07]} 36. Qxe5+ {[%clk 0:00:54]}  Kf8 {[%clk 0:00:06]} 37. Qd6+ {[%clk 0:00:53]}  Ke8 {[%clk 0:00:07]} 38. Rg1 {[%clk 0:00:53]}  Bc5 {[%clk 0:00:03]} 39. Rg8+ {[%clk 0:00:52]}  Rf8 {[%clk 0:00:03]} 40. Rxf8# {[%clk 0:00:52]} 1-0


[Site "https://www.chess.com"]

[Event "Titled Tuesday Blitz August 17 2021"]
[White "Ladan, Nicholas"]
[Black "Idani, Pouya"]
[WhiteFideId "30918855"]
[BlackFideId "12510130"]
[WhiteElo "2342"]
[BlackElo "2610"]
[Result "0-1"]
[Round "02"]
[TimeControl "180+1"]
[Date "2021.08.18"]
[WhiteClock "0:00:19"]
[BlackClock "0:00:16"]

1. d4 {[%clk 0:03:00]}  Nf6 {[%clk 0:02:58]} 2. Nf3 {[%clk 0:03:00]}  g6 {[%clk 0:02:58]} 3. Nbd2 {[%clk 0:03:01]}  Bg7 {[%clk 0:02:58]} 4. e4 {[%clk 0:03:02]}  d6 {[%clk 0:02:59]} 5. h3 {[%clk 0:03:01]}  O-O {[%clk 0:02:59]} 6. Bd3 {[%clk 0:03:01]}  c6 {[%clk 0:02:58]} 7. O-O {[%clk 0:03:01]}  Nbd7 {[%clk 0:02:59]} 8. c3 {[%clk 0:03:01]}  e5 {[%clk 0:02:59]} 9. a4 {[%clk 0:03:01]}  Re8 {[%clk 0:02:58]} 10. a5 {[%clk 0:03:01]}  Qc7 {[%clk 0:02:54]} 11. Re1 {[%clk 0:03:01]}  Rb8 {[%clk 0:02:46]} 12. b4 {[%clk 0:03:00]}  b5 {[%clk 0:02:45]} 13. Qb3 {[%clk 0:02:58]}  Nf8 {[%clk 0:02:41]} 14. Bb2 {[%clk 0:02:45]}  Be6 {[%clk 0:02:28]} 15. Qa3 {[%clk 0:02:45]}  Nh5 {[%clk 0:02:20]} 16. Rac1 {[%clk 0:02:44]}  a6 {[%clk 0:02:18]} 17. c4 {[%clk 0:02:40]}  Nf4 {[%clk 0:01:52]} 18. Bf1 {[%clk 0:02:40]}  Qd8 {[%clk 0:01:26]} 19. d5 {[%clk 0:02:07]}  cxd5 {[%clk 0:01:22]} 20. cxd5 {[%clk 0:02:07]}  Bd7 {[%clk 0:01:22]} 21. Rc2 {[%clk 0:02:04]}  f5 {[%clk 0:01:22]} 22. Rec1 {[%clk 0:02:00]}  Qf6 {[%clk 0:01:21]} 23. Rc6 {[%clk 0:01:52]}  Bxc6 {[%clk 0:01:17]} 24. Rxc6 {[%clk 0:01:53]}  Ra8 {[%clk 0:01:17]} 25. Qa1 {[%clk 0:01:37]}  h6 {[%clk 0:01:14]} 26. Nb3 {[%clk 0:01:20]}  fxe4 {[%clk 0:00:58]} 27. Nfd2 {[%clk 0:01:19]}  e3 {[%clk 0:00:40]} 28. fxe3 {[%clk 0:01:16]}  Nxd5 {[%clk 0:00:40]} 29. Ne4 {[%clk 0:01:15]}  Qh4 {[%clk 0:00:40]} 30. Nxd6 {[%clk 0:01:12]}  Nxb4 {[%clk 0:00:35]} 31. Nxe8 {[%clk 0:01:06]}  Nxc6 {[%clk 0:00:35]} 32. Nxg7 {[%clk 0:01:04]}  Kxg7 {[%clk 0:00:35]} 33. Nc5 {[%clk 0:00:55]}  Qe7 {[%clk 0:00:31]} 34. Ne4 {[%clk 0:00:51]}  Nd7 {[%clk 0:00:27]} 35. Ba3 {[%clk 0:00:44]}  b4 {[%clk 0:00:25]} 36. Bb2 {[%clk 0:00:44]}  Nf6 {[%clk 0:00:25]} 37. Nf2 {[%clk 0:00:43]}  Nd5 {[%clk 0:00:23]} 38. e4 {[%clk 0:00:40]}  Nf6 {[%clk 0:00:20]} 39. Bc4 {[%clk 0:00:40]}  Rd8 {[%clk 0:00:18]} 40. Bxa6 {[%clk 0:00:39]}  Qc5 {[%clk 0:00:17]} 41. Kf1 {[%clk 0:00:36]}  Rd2 {[%clk 0:00:16]} 42. Be2 {[%clk 0:00:36]}  Qe3 {[%clk 0:00:15]} 43. Qe1 {[%clk 0:00:20]}  Rxb2 {[%clk 0:00:15]} 44. Nd3 {[%clk 0:00:21]}  Rd2 {[%clk 0:00:14]} 45. a6 {[%clk 0:00:18]}  Rxd3 {[%clk 0:00:14]} 46. Bxd3 {[%clk 0:00:18]}  Qxd3+ {[%clk 0:00:15]} 47. Qe2 {[%clk 0:00:19]}  Qxe2+ {[%clk 0:00:15]} 48. Kxe2 {[%clk 0:00:20]}  Nxe4 {[%clk 0:00:16]} 49. Kd3 {[%clk 0:00:20]}  Nd6 {[%clk 0:00:16]} 50. a7 {[%clk 0:00:19]}  Nxa7 {[%clk 0:00:16]} 0-1


[Site "https://www.chess.com"]

[Event "Titled Tuesday Blitz August 17 2021"]
[White "Lamard, Guillaume"]
[Black "Shimanov, Aleksandr"]
[WhiteFideId "600261"]
[BlackFideId "4198603"]
[WhiteElo "2387"]
[BlackElo "2596"]
[Result "0-1"]
[Round "02"]
[TimeControl "180+1"]
[Date "2021.08.17"]
[WhiteClock "0:00:02"]
[BlackClock "0:01:07"]

1. Nf3 {[%clk 0:03:00]}  Nf6 {[%clk 0:02:57]} 2. c4 {[%clk 0:03:01]}  c5 {[%clk 0:02:54]} 3. Nc3 {[%clk 0:03:00]}  Nc6 {[%clk 0:02:54]} 4. e3 {[%clk 0:02:59]}  e6 {[%clk 0:02:52]} 5. d4 {[%clk 0:02:59]}  d5 {[%clk 0:02:53]} 6. cxd5 {[%clk 0:03:00]}  Nxd5 {[%clk 0:02:54]} 7. Bc4 {[%clk 0:02:55]}  Nb6 {[%clk 0:02:43]} 8. Bd3 {[%clk 0:02:49]}  Be7 {[%clk 0:02:42]} 9. O-O {[%clk 0:02:49]}  O-O {[%clk 0:02:42]} 10. Bc2 {[%clk 0:02:41]}  cxd4 {[%clk 0:02:39]} 11. exd4 {[%clk 0:02:40]}  Nb4 {[%clk 0:02:39]} 12. Bb1 {[%clk 0:02:39]}  Bd7 {[%clk 0:02:32]} 13. Ne5 {[%clk 0:02:38]}  N4d5 {[%clk 0:02:17]} 14. Re1 {[%clk 0:02:22]}  Bc6 {[%clk 0:02:15]} 15. Qd3 {[%clk 0:02:06]}  g6 {[%clk 0:02:11]} 16. Bh6 {[%clk 0:01:59]}  Re8 {[%clk 0:02:11]} 17. Qh3 {[%clk 0:01:52]}  Bf6 {[%clk 0:02:05]} 18. Ne4 {[%clk 0:01:47]}  Nd7 {[%clk 0:02:00]} 19. Nd6 {[%clk 0:01:23]}  Re7 {[%clk 0:01:59]} 20. Nexf7 {[%clk 0:01:17]}  Qc7 {[%clk 0:01:46]} 21. Qg4 {[%clk 0:01:02]}  Nf8 {[%clk 0:01:35]} 22. Bxf8 {[%clk 0:00:50]}  Rxf8 {[%clk 0:01:35]} 23. Bxg6 {[%clk 0:00:46]}  hxg6 {[%clk 0:01:22]} 24. Qxg6+ {[%clk 0:00:33]}  Bg7 {[%clk 0:01:22]} 25. Ng5 {[%clk 0:00:17]}  Nf6 {[%clk 0:01:20]} 26. Rxe6 {[%clk 0:00:13]}  Be8 {[%clk 0:01:11]} 27. Nxe8 {[%clk 0:00:09]}  Rfxe8 {[%clk 0:01:11]} 28. Rae1 {[%clk 0:00:04]}  Rxe6 {[%clk 0:01:11]} 29. Nxe6 {[%clk 0:00:04]}  Rxe6 {[%clk 0:01:10]} 30. Rf1 {[%clk 0:00:01]}  Qd7 {[%clk 0:01:07]} 31. d5 {[%clk 0:00:01]}  Nxd5 {[%clk 0:01:07]} 32. h3 {[%clk 0:00:02]} 0-1


[Site "https://www.chess.com"]

[Event "Titled Tuesday Blitz August 17 2021"]
[White "Le, Tuan Minh"]
[Black "Gurvich, Vitaly"]
[WhiteFideId "12401153"]
[BlackFideId "24164852"]
[WhiteElo "2450"]
[BlackElo "2252"]
[Result "1-0"]
[Round "02"]
[TimeControl "180+1"]
[Date "2021.08.17"]
[WhiteClock "0:01:46"]
[BlackClock "0:01:40"]

1. d4 {[%clk 0:03:00]}  Nf6 {[%clk 0:02:59]} 2. Nf3 {[%clk 0:03:01]}  e6 {[%clk 0:02:56]} 3. Bf4 {[%clk 0:03:01]}  d5 {[%clk 0:02:56]} 4. e3 {[%clk 0:03:01]}  c5 {[%clk 0:02:57]} 5. c3 {[%clk 0:03:01]}  Nc6 {[%clk 0:02:57]} 6. Nbd2 {[%clk 0:02:57]}  Bd6 {[%clk 0:02:56]} 7. Bg3 {[%clk 0:02:56]}  Qe7 {[%clk 0:02:56]} 8. Bd3 {[%clk 0:02:53]}  e5 {[%clk 0:02:53]} 9. dxe5 {[%clk 0:02:53]}  Nxe5 {[%clk 0:02:53]} 10. Nxe5 {[%clk 0:02:54]}  Bxe5 {[%clk 0:02:54]} 11. Qa4+ {[%clk 0:02:43]}  Bd7 {[%clk 0:02:51]} 12. Qh4 {[%clk 0:02:44]}  h6 {[%clk 0:02:37]} 13. Bxe5 {[%clk 0:02:20]}  Qxe5 {[%clk 0:02:38]} 14. Qg3 {[%clk 0:02:21]}  Qxg3 {[%clk 0:02:34]} 15. hxg3 {[%clk 0:02:22]}  Ke7 {[%clk 0:02:34]} 16. f3 {[%clk 0:02:22]}  h5 {[%clk 0:02:34]} 17. Kf2 {[%clk 0:02:22]}  g6 {[%clk 0:02:34]} 18. Rhe1 {[%clk 0:02:21]}  Bc6 {[%clk 0:02:31]} 19. e4 {[%clk 0:02:18]}  dxe4 {[%clk 0:02:28]} 20. Nxe4 {[%clk 0:02:19]}  Nxe4+ {[%clk 0:02:28]} 21. Bxe4 {[%clk 0:02:20]}  Bxe4 {[%clk 0:02:28]} 22. Rxe4+ {[%clk 0:02:21]}  Kf6 {[%clk 0:02:28]} 23. Rae1 {[%clk 0:02:21]}  Rhd8 {[%clk 0:02:27]} 24. Rf4+ {[%clk 0:02:21]}  Kg7 {[%clk 0:02:25]} 25. Re7 {[%clk 0:02:22]}  Rf8 {[%clk 0:02:21]} 26. Rxb7 {[%clk 0:02:21]}  Rad8 {[%clk 0:02:21]} 27. Re4 {[%clk 0:02:13]}  g5 {[%clk 0:02:11]} 28. Re5 {[%clk 0:02:09]}  Kg6 {[%clk 0:02:10]} 29. a4 {[%clk 0:01:58]}  Rd1 {[%clk 0:02:07]} 30. Rxa7 {[%clk 0:01:53]}  Rfd8 {[%clk 0:02:07]} 31. Re2 {[%clk 0:01:49]}  Rc1 {[%clk 0:02:06]} 32. Rc7 {[%clk 0:01:47]}  Rdd1 {[%clk 0:01:55]} 33. Rxc5 {[%clk 0:01:46]}  f5 {[%clk 0:01:40]} 34. Ke3 {[%clk 0:01:46]} 1-0


[Site "https://www.chess.com"]

[Event "Titled Tuesday Blitz August 17 2021"]
[White "Machidon, Cristi"]
[Black "Kovalev, Vladislav"]
[WhiteFideId "13904590"]
[BlackFideId "13504398"]
[WhiteElo "2312"]
[BlackElo "2573"]
[Result "1/2-1/2"]
[Round "02"]
[TimeControl "180+1"]
[Date "2021.08.17"]
[WhiteClock "0:00:05"]
[BlackClock "0:00:10"]

1. d4 {[%clk 0:03:00]}  Nf6 {[%clk 0:03:00]} 2. Nf3 {[%clk 0:03:00]}  g6 {[%clk 0:03:00]} 3. Bg5 {[%clk 0:03:01]}  Bg7 {[%clk 0:03:00]} 4. Nbd2 {[%clk 0:03:01]}  d6 {[%clk 0:03:00]} 5. e4 {[%clk 0:03:01]}  O-O {[%clk 0:03:00]} 6. c3 {[%clk 0:03:01]}  c5 {[%clk 0:03:01]} 7. dxc5 {[%clk 0:03:01]}  dxc5 {[%clk 0:03:02]} 8. Bc4 {[%clk 0:03:01]}  Nc6 {[%clk 0:03:02]} 9. O-O {[%clk 0:03:01]}  Qc7 {[%clk 0:03:00]} 10. h3 {[%clk 0:03:00]}  h6 {[%clk 0:02:59]} 11. Be3 {[%clk 0:02:54]}  b6 {[%clk 0:03:00]} 12. Qe2 {[%clk 0:02:52]}  Nh5 {[%clk 0:03:00]} 13. Rfe1 {[%clk 0:02:47]}  Bb7 {[%clk 0:02:58]} 14. Ba6 {[%clk 0:02:44]}  Rad8 {[%clk 0:02:48]} 15. Bxb7 {[%clk 0:02:43]}  Qxb7 {[%clk 0:02:49]} 16. a4 {[%clk 0:02:40]}  Na5 {[%clk 0:02:46]} 17. Nc4 {[%clk 0:02:29]}  Nxc4 {[%clk 0:02:36]} 18. Qxc4 {[%clk 0:02:30]}  Nf6 {[%clk 0:02:29]} 19. Bf4 {[%clk 0:02:13]}  e6 {[%clk 0:02:17]} 20. a5 {[%clk 0:02:04]}  Rd7 {[%clk 0:01:52]} 21. Ne5 {[%clk 0:01:49]}  Rdd8 {[%clk 0:01:52]} 22. Qb5 {[%clk 0:01:39]}  Rc8 {[%clk 0:01:08]} 23. axb6 {[%clk 0:01:35]}  axb6 {[%clk 0:01:00]} 24. Ra6 {[%clk 0:01:30]}  Nxe4 {[%clk 0:00:51]} 25. Rxb6 {[%clk 0:01:29]}  Qd5 {[%clk 0:00:52]} 26. Qc4 {[%clk 0:00:47]}  Bxe5 {[%clk 0:00:32]} 27. Qxd5 {[%clk 0:00:44]}  exd5 {[%clk 0:00:33]} 28. Bxe5 {[%clk 0:00:45]}  Rfe8 {[%clk 0:00:34]} 29. Bf4 {[%clk 0:00:41]}  g5 {[%clk 0:00:35]} 30. Be3 {[%clk 0:00:40]}  Re6 {[%clk 0:00:24]} 31. Rb5 {[%clk 0:00:36]}  Nd6 {[%clk 0:00:20]} 32. Rb6 {[%clk 0:00:28]}  Nc4 {[%clk 0:00:19]} 33. Rxe6 {[%clk 0:00:28]}  fxe6 {[%clk 0:00:20]} 34. Bc1 {[%clk 0:00:26]}  Kf7 {[%clk 0:00:21]} 35. b3 {[%clk 0:00:22]}  Na5 {[%clk 0:00:11]} 36. b4 {[%clk 0:00:19]}  Nc4 {[%clk 0:00:11]} 37. bxc5 {[%clk 0:00:17]}  Rxc5 {[%clk 0:00:12]} 38. Be3 {[%clk 0:00:17]}  Nxe3 {[%clk 0:00:05]} 39. Rxe3 {[%clk 0:00:18]}  Kf6 {[%clk 0:00:06]} 40. Kf1 {[%clk 0:00:16]}  e5 {[%clk 0:00:06]} 41. Ke2 {[%clk 0:00:16]}  Ra5 {[%clk 0:00:07]} 42. Kd3 {[%clk 0:00:14]}  h5 {[%clk 0:00:04]} 43. Rf3+ {[%clk 0:00:07]}  Ke6 {[%clk 0:00:05]} 44. Kc2 {[%clk 0:00:07]}  Ra2+ {[%clk 0:00:05]} 45. Kb3 {[%clk 0:00:07]}  Re2 {[%clk 0:00:05]} 46. Rf8 {[%clk 0:00:06]}  h4 {[%clk 0:00:04]} 47. Kb4 {[%clk 0:00:05]}  Rb2+ {[%clk 0:00:03]} 48. Kc5 {[%clk 0:00:05]}  Rc2 {[%clk 0:00:03]} 49. Kb4 {[%clk 0:00:04]}  Kd6 {[%clk 0:00:02]} 50. Rf5 {[%clk 0:00:03]}  Rb2+ {[%clk 0:00:03]} 51. Ka3 {[%clk 0:00:03]}  Re2 {[%clk 0:00:03]} 52. Rxg5 {[%clk 0:00:03]}  Rxf2 {[%clk 0:00:04]} 53. Rg4 {[%clk 0:00:04]}  Kc5 {[%clk 0:00:04]} 54. Rxh4 {[%clk 0:00:04]}  Rxg2 {[%clk 0:00:05]} 55. Kb3 {[%clk 0:00:04]}  e4 {[%clk 0:00:05]} 56. Rh8 {[%clk 0:00:04]}  Rg3 {[%clk 0:00:05]} 57. Rc8+ {[%clk 0:00:04]}  Kd6 {[%clk 0:00:06]} 58. Rh8 {[%clk 0:00:05]}  d4 {[%clk 0:00:06]} 59. Rd8+ {[%clk 0:00:03]}  Ke5 {[%clk 0:00:07]} 60. Rxd4 {[%clk 0:00:04]}  e3 {[%clk 0:00:07]} 61. Kc2 {[%clk 0:00:04]}  e2 {[%clk 0:00:07]} 62. Kd2 {[%clk 0:00:04]}  Re3 {[%clk 0:00:08]} 63. Ke1 {[%clk 0:00:04]}  Rxc3 {[%clk 0:00:08]} 64. Rd2 {[%clk 0:00:04]}  Rxh3 {[%clk 0:00:08]} 65. Rxe2+ {[%clk 0:00:05]}  Kf4 {[%clk 0:00:09]} 66. Kd2 {[%clk 0:00:05]}  Rf3 {[%clk 0:00:09]} 67. Ke1 {[%clk 0:00:05]}  Re3 {[%clk 0:00:09]} 68. Rxe3 {[%clk 0:00:05]}  Kxe3 {[%clk 0:00:10]} 1/2-1/2


[Site "https://www.chess.com"]